[Event "Championnat d'Europe de Blitz"]
[Date "2024.12.09"]
[White "Mamedov, Rauf"]
[Black "Zajic, Milan"]
[WhiteElo "2656"]
[BlackElo "2392"]
[Round "11.7"]
[Result "1-0"]
[TimeControl "180+2"]

1. e4 {[%clk 00:03:02]} e5 {[%clk 00:03:03]} 2. Nf3 {[%clk 00:03:03]} Nc6 {[%clk
00:03:04]} 3. Bc4 {[%emt 00:00:07] [%clk 00:02:59]} Nf6 {[%emt 00:00:01] [%clk
00:03:05]} 4. d3 {[%emt 00:00:02] [%clk 00:02:59]} Bc5 {[%emt 00:00:01] [%clk
00:03:06]} 5. Nc3 {[%clk 00:03:00]} a6 {[%emt 00:00:12] [%clk 00:02:55]} 6. Bg5
{[%emt 00:00:04] [%clk 00:02:58]} h6 {[%emt 00:00:02] [%clk 00:02:56]} 7. Bxf6
{[%emt 00:00:03] [%clk 00:02:58]} Qxf6 {[%emt 00:00:02] [%clk 00:02:56]} 8. Nd5
{[%emt 00:00:01] [%clk 00:02:59]} Qd8 {[%emt 00:00:01] [%clk 00:02:57]} 9. c3
{[%clk 00:03:00]} Ba7 {[%emt 00:00:08] [%clk 00:02:51]} 10. d4 {[%emt 00:00:01]
[%clk 00:03:01]} O-O {[%emt 00:00:25] [%clk 00:02:28]} 11. dxe5 {[%emt 00:00:55]
[%clk 00:02:08]} Re8 {[%emt 00:00:04] [%clk 00:02:27]} 12. O-O {[%emt 00:00:34]
[%clk 00:01:36]} Nxe5 {[%emt 00:00:01] [%clk 00:02:27]} 13. Nxe5 {[%emt
00:00:03] [%clk 00:01:36]} Rxe5 {[%emt 00:00:02] [%clk 00:02:27]} 14. Qf3 {[%clk
00:01:37]} Re6 {[%emt 00:00:39] [%clk 00:01:50]} 15. Nf4 {[%emt 00:00:13] [%clk
00:01:26]} Re8 {[%emt 00:00:24] [%clk 00:01:28]} 16. e5 {[%emt 00:00:15] [%clk
00:01:13]} d6 {[%emt 00:01:02] [%clk 00:00:29]} 17. exd6 {[%emt 00:00:02] [%clk
00:01:14]} Qxd6 {[%emt 00:00:10] [%clk 00:00:21]} 18. Rad1 {[%emt 00:00:04]
[%clk 00:01:12]} Qf6 {[%emt 00:00:01] [%clk 00:00:22]} 19. Qg3 {[%clk 00:01:14]}
c6 {[%emt 00:00:05] [%clk 00:00:19]} 20. h4 {[%emt 00:00:24] [%clk 00:00:52]}
Bb8 {[%emt 00:00:03] [%clk 00:00:18]} 21. Nh5 {[%emt 00:00:02] [%clk 00:00:52]}
Bxg3 {[%emt 00:00:06] [%clk 00:00:14]} 22. Nxf6+ {[%emt 00:00:01] [%clk
00:00:53]} gxf6 {[%emt 00:00:01] [%clk 00:00:15]} 23. fxg3 {[%clk 00:00:54]} Kg7
{[%emt 00:00:05] [%clk 00:00:12]} 24. Rf4 {[%emt 00:00:05] [%clk 00:00:50]} b5
{[%emt 00:00:04] [%clk 00:00:11]} 25. Bb3 {[%clk 00:00:52]} Ra7 {[%emt 00:00:06]
[%clk 00:00:06]} 26. Rd6 {[%emt 00:00:01] [%clk 00:00:53]} Be6 {[%emt 00:00:03]
[%clk 00:00:06]} 27. Rxc6 {[%clk 00:00:53]} Bxb3 {[%emt 00:00:04] [%clk
00:00:04]} 28. axb3 {[%clk 00:00:54]} Re2 {[%emt 00:00:01] [%clk 00:00:05]} 29.
Rg4+ {[%emt 00:00:33] [%clk 00:00:23]} Kf8 {[%emt 00:00:02] [%clk 00:00:04]} 30.
Rxf6 {[%emt 00:00:02] [%clk 00:00:24]} Rxb2 {[%emt 00:00:01] [%clk 00:00:05]}
31. b4 {[%clk 00:00:25]} a5 {[%emt 00:00:03] [%clk 00:00:05]} 32. bxa5 {[%emt
00:00:01] [%clk 00:00:26]} Rxa5 {[%clk 00:00:07]} 33. Rgf4 {[%emt 00:00:02]
[%clk 00:00:27]} Ra1+ {[%emt 00:00:04] [%clk 00:00:04]} 34. Kh2 {[%emt 00:00:02]
[%clk 00:00:27]} Raa2 {[%emt 00:00:01] [%clk 00:00:05]} 35. Kh3 {[%emt 00:00:01]
[%clk 00:00:28]} h5 {[%emt 00:00:02] [%clk 00:00:05]} 36. R6f5 {[%emt 00:00:02]
[%clk 00:00:27]} Rxg2 {[%emt 00:00:02] [%clk 00:00:06]} 37. Rxh5 {[%emt
00:00:01] [%clk 00:00:28]} Rh2+ {[%emt 00:00:03] [%clk 00:00:05]} 38. Kg4 {[%clk
00:00:29]} Rhc2 {[%emt 00:00:02] [%clk 00:00:05]} 39. Rxb5 {[%emt 00:00:02]
[%clk 00:00:29]} Rxc3 {[%emt 00:00:03] [%clk 00:00:04]} 40. Rb8+ {[%emt
00:00:02] [%clk 00:00:29]} Ke7 {[%emt 00:00:03] [%clk 00:00:03]} 41. Rb7+ {[%emt
00:00:01] [%clk 00:00:30]} Ke6 {[%clk 00:00:04]} 42. Rbxf7 {[%emt 00:00:03]
[%clk 00:00:30]} Raa3 {[%clk 00:00:06]} 43. Rf3 {[%emt 00:00:04] [%clk
00:00:27]} Rc4+ {[%emt 00:00:03] [%clk 00:00:06]} 44. Kh3 {[%clk 00:00:28]} Ra1
{[%emt 00:00:02] [%clk 00:00:07]} 45. R7f4 {[%emt 00:00:02] [%clk 00:00:28]} Rc2
{[%emt 00:00:01] [%clk 00:00:08]} 46. Re3+ {[%clk 00:00:29]} Kd6 {[%emt
00:00:01] [%clk 00:00:09]} 47. Kg4 {[%emt 00:00:04] [%clk 00:00:27]} Rh1 {[%emt
00:00:02] [%clk 00:00:09]} 48. Rd4+ {[%emt 00:00:05] [%clk 00:00:23]} Kc5 {[%clk
00:00:10]} 49. Rd8 {[%emt 00:00:01] [%clk 00:00:25]} Rf2 {[%emt 00:00:02] [%clk
00:00:10]} 50. Rc3+ {[%emt 00:00:01] [%clk 00:00:25]} Kb6 {[%emt 00:00:01] [%clk
00:00:11]} 51. Rb8+ {[%emt 00:00:03] [%clk 00:00:25]} 1-0

[Site "Europe Echecs"]

[Event "Championnat d'Europe de Blitz"]
[Date "2024.12.09"]
[White "Baidetskyi, Valentin"]
[Black "Fressinet, Laurent"]
[WhiteElo "2519"]
[BlackElo "2588"]
[Round "11.8"]
[Result "1/2-1/2"]
[TimeControl "180+2"]

1. e4 {[%clk 00:03:02]} e5 {[%clk 00:03:03]} 2. Bc4 {[%emt 00:00:03] [%clk
00:03:01]} Nf6 {[%clk 00:03:04]} 3. d3 {[%emt 00:00:02] [%clk 00:03:02]} Bc5
{[%clk 00:03:05]} 4. Nf3 {[%emt 00:00:02] [%clk 00:03:03]} Nc6 {[%emt 00:00:03]
[%clk 00:03:04]} 5. Bg5 {[%emt 00:00:02] [%clk 00:03:03]} h6 {[%emt 00:00:02]
[%clk 00:03:04]} 6. Bh4 {[%emt 00:00:01] [%clk 00:03:03]} d6 {[%emt 00:00:02]
[%clk 00:03:04]} 7. c3 {[%emt 00:00:02] [%clk 00:03:03]} a6 {[%emt 00:00:02]
[%clk 00:03:05]} 8. Nbd2 {[%emt 00:00:05] [%clk 00:03:00]} Ba7 {[%emt 00:00:03]
[%clk 00:03:03]} 9. O-O {[%emt 00:00:03] [%clk 00:03:00]} Qe7 {[%emt 00:00:23]
[%clk 00:02:42]} 10. Kh1 {[%emt 00:00:06] [%clk 00:02:55]} Be6 {[%emt 00:00:09]
[%clk 00:02:35]} 11. b4 {[%emt 00:00:13] [%clk 00:02:44]} O-O {[%emt 00:00:10]
[%clk 00:02:27]} 12. a4 {[%emt 00:00:09] [%clk 00:02:37]} Bxc4 {[%emt 00:00:02]
[%clk 00:02:28]} 13. Nxc4 {[%emt 00:00:01] [%clk 00:02:37]} Qe6 {[%clk
00:02:29]} 14. Ncd2 {[%emt 00:00:29] [%clk 00:02:11]} Ne7 {[%emt 00:00:03] [%clk
00:02:28]} 15. Qb3 {[%emt 00:00:08] [%clk 00:02:05]} Ng6 {[%emt 00:00:04] [%clk
00:02:26]} 16. Qxe6 {[%emt 00:00:07] [%clk 00:02:00]} fxe6 {[%emt 00:00:01]
[%clk 00:02:27]} 17. Bg3 {[%emt 00:00:02] [%clk 00:02:00]} Nh5 {[%emt 00:00:11]
[%clk 00:02:18]} 18. d4 {[%emt 00:00:06] [%clk 00:01:57]} exd4 {[%emt 00:00:35]
[%clk 00:01:45]} 19. cxd4 {[%emt 00:00:03] [%clk 00:01:55]} Nxg3+ {[%emt
00:00:14] [%clk 00:01:34]} 20. hxg3 {[%emt 00:00:02] [%clk 00:01:54]} c6 {[%emt
00:00:02] [%clk 00:01:34]} 21. Rfe1 {[%emt 00:00:14] [%clk 00:01:42]} e5 {[%emt
00:00:14] [%clk 00:01:22]} 22. Nc4 {[%emt 00:00:31] [%clk 00:01:13]} Bxd4 {[%emt
00:00:01] [%clk 00:01:23]} 23. Nxd4 {[%emt 00:00:02] [%clk 00:01:13]} exd4
{[%emt 00:00:01] [%clk 00:01:24]} 24. f4 {[%emt 00:00:10] [%clk 00:01:05]} d5
{[%emt 00:00:03] [%clk 00:01:24]} 25. Nb6 {[%emt 00:00:03] [%clk 00:01:04]} Rad8
{[%emt 00:00:05] [%clk 00:01:21]} 26. exd5 {[%emt 00:00:05] [%clk 00:01:01]}
cxd5 {[%emt 00:00:03] [%clk 00:01:20]} 27. Rad1 {[%emt 00:00:01] [%clk
00:01:02]} Rfe8 {[%emt 00:00:48] [%clk 00:00:34]} 28. Rxe8+ {[%emt 00:00:08]
[%clk 00:00:55]} Rxe8 {[%emt 00:00:01] [%clk 00:00:35]} 29. Rxd4 {[%clk
00:00:56]} Re4 {[%emt 00:00:06] [%clk 00:00:31]} 30. Rxe4 {[%emt 00:00:10] [%clk
00:00:49]} dxe4 {[%clk 00:00:32]} 31. Kg1 {[%emt 00:00:01] [%clk 00:00:50]} Ne7
{[%emt 00:00:12] [%clk 00:00:21]} 32. Kf2 {[%emt 00:00:03] [%clk 00:00:50]} Nf5
{[%emt 00:00:06] [%clk 00:00:17]} 33. g4 {[%emt 00:00:10] [%clk 00:00:42]} e3+
{[%emt 00:00:01] [%clk 00:00:18]} 34. Ke2 {[%emt 00:00:04] [%clk 00:00:39]} Nd4+
{[%emt 00:00:02] [%clk 00:00:19]} 35. Kxe3 {[%emt 00:00:01] [%clk 00:00:40]}
Nc2+ {[%clk 00:00:21]} 36. Kd3 {[%emt 00:00:18] [%clk 00:00:25]} Nxb4+ {[%emt
00:00:01] [%clk 00:00:22]} 37. Kc4 {[%emt 00:00:05] [%clk 00:00:21]} Nc2 {[%emt
00:00:04] [%clk 00:00:19]} 38. Kc5 {[%emt 00:00:11] [%clk 00:00:14]} Ne3 {[%emt
00:00:07] [%clk 00:00:13]} 39. Kd6 {[%emt 00:00:09] [%clk 00:00:07]} Nxg2 {[%emt
00:00:01] [%clk 00:00:14]} 40. Kc7 {[%emt 00:00:03] [%clk 00:00:07]} Nxf4 {[%emt
00:00:01] [%clk 00:00:15]} 41. Kxb7 {[%clk 00:00:08]} Nd3 {[%emt 00:00:03] [%clk
00:00:13]} 42. Kxa6 {[%emt 00:00:02] [%clk 00:00:08]} Nc5+ {[%clk 00:00:15]} 43.
Kb5 {[%clk 00:00:09]} Nxa4 {[%emt 00:00:01] [%clk 00:00:16]} 44. Nxa4 {[%emt
00:00:04] [%clk 00:00:07]} Kf7 {[%emt 00:00:04] [%clk 00:00:14]} 45. Kc4 {[%emt
00:00:02] [%clk 00:00:06]} Kg6 {[%clk 00:00:15]} 46. Nc5 {[%emt 00:00:02] [%clk
00:00:07]} Kg5 {[%emt 00:00:03] [%clk 00:00:13]} 47. Ne6+ {[%emt 00:00:01] [%clk
00:00:08]} Kxg4 {[%emt 00:00:01] [%clk 00:00:15]} 48. Nxg7 {[%emt 00:00:01]
[%clk 00:00:08]} h5 {[%clk 00:00:16]} 49. Nxh5 {[%emt 00:00:01] [%clk 00:00:06]}
1/2-1/2

[Site "Europe Echecs"]

[Event "Championnat d'Europe de Blitz"]
[Date "2024.12.09"]
[White "Peyrer, Konstantin"]
[Black "Alonso Rosell, Alvar"]
[WhiteElo "2440"]
[BlackElo "2532"]
[Round "11.9"]
[Result "1-0"]
[TimeControl "180+2"]

1. c4 {[%clk 00:03:03]} c5 {[%emt 00:00:02] [%clk 00:03:03]} 2. Nf3 {[%emt
00:00:01] [%clk 00:03:03]} Nf6 {[%emt 00:00:01] [%clk 00:03:03]} 3. g3 {[%emt
00:00:03] [%clk 00:03:03]} Nc6 {[%emt 00:00:02] [%clk 00:03:04]} 4. Bg2 {[%emt
00:00:02] [%clk 00:03:03]} d6 {[%emt 00:00:01] [%clk 00:03:05]} 5. Nc3 {[%emt
00:00:02] [%clk 00:03:03]} g6 {[%emt 00:00:01] [%clk 00:03:06]} 6. O-O {[%emt
00:00:02] [%clk 00:03:03]} Bg7 {[%clk 00:03:07]} 7. d4 {[%emt 00:00:03] [%clk
00:03:02]} cxd4 {[%emt 00:00:01] [%clk 00:03:08]} 8. Nxd4 {[%emt 00:00:02] [%clk
00:03:02]} Bd7 {[%clk 00:03:09]} 9. Nc2 {[%emt 00:00:01] [%clk 00:03:03]} h5
{[%emt 00:00:02] [%clk 00:03:09]} 10. Bg5 {[%emt 00:00:05] [%clk 00:03:00]} Nh7
{[%emt 00:00:17] [%clk 00:02:55]} 11. Bd2 {[%emt 00:00:01] [%clk 00:03:01]} h4
{[%emt 00:00:03] [%clk 00:02:53]} 12. Nd5 {[%emt 00:00:11] [%clk 00:02:53]} Qc8
{[%emt 00:00:12] [%clk 00:02:43]} 13. Rb1 {[%emt 00:00:40] [%clk 00:02:14]} hxg3
{[%emt 00:00:17] [%clk 00:02:28]} 14. hxg3 {[%clk 00:02:15]} Nf6 {[%emt
00:00:01] [%clk 00:02:29]} 15. Re1 {[%emt 00:00:17] [%clk 00:02:01]} Bh3 {[%emt
00:00:02] [%clk 00:02:29]} 16. Bf3 {[%emt 00:00:01] [%clk 00:02:01]} Ne5 {[%emt
00:00:05] [%clk 00:02:26]} 17. Nce3 {[%emt 00:00:08] [%clk 00:01:55]} Bf5 {[%emt
00:00:42] [%clk 00:01:47]} 18. Nxf5 {[%emt 00:00:11] [%clk 00:01:45]} Qxf5
{[%emt 00:00:02] [%clk 00:01:47]} 19. Bg2 {[%emt 00:00:05] [%clk 00:01:43]} Nxd5
{[%emt 00:00:24] [%clk 00:01:25]} 20. cxd5 {[%clk 00:01:44]} Qh5 {[%emt
00:00:28] [%clk 00:00:59]} 21. Qb3 {[%emt 00:00:23] [%clk 00:01:23]} Rb8 {[%emt
00:00:06] [%clk 00:00:54]} 22. Rbc1 {[%emt 00:00:06] [%clk 00:01:20]} Bh6 {[%emt
00:00:13] [%clk 00:00:43]} 23. Bxh6 {[%emt 00:00:30] [%clk 00:00:51]} Qxh6
{[%emt 00:00:01] [%clk 00:00:44]} 24. Rc7 {[%emt 00:00:04] [%clk 00:00:50]} Qd2
{[%emt 00:00:07] [%clk 00:00:38]} 25. Qc3 {[%emt 00:00:16] [%clk 00:00:36]} Qxc3
{[%emt 00:00:05] [%clk 00:00:35]} 26. Rxc3 {[%clk 00:00:37]} Kd7 {[%emt
00:00:12] [%clk 00:00:26]} 27. f4 {[%emt 00:00:05] [%clk 00:00:33]} Ng4 {[%emt
00:00:04] [%clk 00:00:25]} 28. Rec1 {[%emt 00:00:01] [%clk 00:00:34]} Rbc8
{[%emt 00:00:06] [%clk 00:00:21]} 29. Rxc8 {[%emt 00:00:13] [%clk 00:00:23]}
Rxc8 {[%clk 00:00:22]} 30. Rxc8 {[%clk 00:00:24]} Kxc8 {[%emt 00:00:01] [%clk
00:00:23]} 31. Bh3 {[%emt 00:00:01] [%clk 00:00:25]} f5 {[%clk 00:00:25]} 32.
Bxg4 {[%emt 00:00:17] [%clk 00:00:10]} fxg4 {[%emt 00:00:01] [%clk 00:00:26]}
33. e4 {[%emt 00:00:01] [%clk 00:00:11]} Kc7 {[%emt 00:00:02] [%clk 00:00:26]}
34. Kf2 {[%clk 00:00:12]} Kb6 {[%emt 00:00:01] [%clk 00:00:27]} 35. Ke3 {[%emt
00:00:03] [%clk 00:00:10]} Kc5 {[%emt 00:00:01] [%clk 00:00:28]} 36. Kd3 {[%clk
00:00:11]} a5 {[%emt 00:00:16] [%clk 00:00:14]} 37. Kc3 {[%emt 00:00:05] [%clk
00:00:08]} a4 {[%emt 00:00:08] [%clk 00:00:09]} 38. b4+ {[%emt 00:00:05] [%clk
00:00:05]} axb3 {[%emt 00:00:03] [%clk 00:00:07]} 39. axb3 {[%emt 00:00:04]
[%clk 00:00:04]} b6 {[%emt 00:00:05] [%clk 00:00:04]} 40. b4+ {[%emt 00:00:02]
[%clk 00:00:03]} Kb5 {[%emt 00:00:03] [%clk 00:00:03]} 41. Kb3 {[%clk 00:00:04]}
Ka6 {[%clk 00:00:05]} 42. Ka4 {[%emt 00:00:03] [%clk 00:00:04]} b5+ {[%emt
00:00:01] [%clk 00:00:06]} 43. Kb3 {[%clk 00:00:05]} Kb6 {[%emt 00:00:02] [%clk
00:00:06]} 44. Kc3 {[%emt 00:00:01] [%clk 00:00:06]} Kc7 {[%emt 00:00:01] [%clk
00:00:07]} 45. Kd3 {[%emt 00:00:01] [%clk 00:00:07]} Kd7 {[%emt 00:00:01] [%clk
00:00:09]} 46. Kd4 {[%emt 00:00:01] [%clk 00:00:07]} e6 {[%emt 00:00:02] [%clk
00:00:08]} 47. e5 {[%emt 00:00:04] [%clk 00:00:05]} Ke7 {[%emt 00:00:06] [%clk
00:00:04]} 48. Ke4 {[%emt 00:00:04] [%clk 00:00:03]} Kd7 {[%emt 00:00:02] [%clk
00:00:04]} 49. Kd4 {[%clk 00:00:04]} Ke7 {[%emt 00:00:01] [%clk 00:00:06]} 50.
exd6+ {[%emt 00:00:01] [%clk 00:00:05]} Kxd6 {[%clk 00:00:06]} 51. dxe6 {[%emt
00:00:01] [%clk 00:00:06]} Kxe6 {[%clk 00:00:07]} 52. Kc5 {[%emt 00:00:01] [%clk
00:00:08]} Kf5 {[%emt 00:00:02] [%clk 00:00:07]} 53. Kxb5 {[%emt 00:00:02] [%clk
00:00:08]} Ke4 {[%clk 00:00:08]} 54. Kc6 {[%clk 00:00:09]} Kf3 {[%clk 00:00:09]}
55. b5 {[%clk 00:00:10]} Kxg3 {[%emt 00:00:01] [%clk 00:00:10]} 56. b6 {[%clk
00:00:12]} Kh3 {[%emt 00:00:06] [%clk 00:00:06]} 57. b7 {[%emt 00:00:01] [%clk
00:00:13]} g3 {[%clk 00:00:08]} 58. b8=Q {[%emt 00:00:01] [%clk 00:00:13]} g2
{[%clk 00:00:09]} 59. Qb3+ {[%emt 00:00:02] [%clk 00:00:13]} Kh2 {[%emt
00:00:02] [%clk 00:00:09]} 60. Qc2 {[%clk 00:00:14]} Kh1 {[%emt 00:00:04] [%clk
00:00:06]} 61. Qxg6 {[%emt 00:00:02] [%clk 00:00:15]} 1-0

[Site "Europe Echecs"]

[Event "Championnat d'Europe de Blitz"]
[Date "2024.12.09"]
[White "Dardha, Daniel"]
[Black "Djukic, Nikola"]
[WhiteElo "2639"]
[BlackElo "2493"]
[Round "11.10"]
[Result "1-0"]
[TimeControl "180+2"]

1. d4 {[%emt 00:00:02] [%clk 00:03:02]} Nf6 {[%emt 00:00:02] [%clk 00:03:03]} 2.
Bg5 {[%emt 00:00:01] [%clk 00:03:02]} g6 {[%emt 00:00:02] [%clk 00:03:03]} 3.
Bxf6 {[%emt 00:00:03] [%clk 00:03:02]} exf6 {[%emt 00:00:01] [%clk 00:03:04]} 4.
e3 {[%emt 00:00:03] [%clk 00:03:02]} d5 {[%emt 00:00:01] [%clk 00:03:05]} 5. c4
{[%emt 00:00:03] [%clk 00:03:00]} dxc4 {[%emt 00:00:02] [%clk 00:03:05]} 6. Bxc4
{[%emt 00:00:01] [%clk 00:03:01]} Bd6 {[%clk 00:03:06]} 7. Nc3 {[%emt 00:00:01]
[%clk 00:03:01]} Nd7 {[%emt 00:00:07] [%clk 00:03:01]} 8. Bb3 {[%emt 00:00:06]
[%clk 00:02:58]} f5 {[%emt 00:00:12] [%clk 00:02:51]} 9. h4 {[%emt 00:00:13]
[%clk 00:02:48]} h5 {[%emt 00:00:06] [%clk 00:02:47]} 10. Qf3 {[%emt 00:00:11]
[%clk 00:02:38]} Nf6 {[%emt 00:00:10] [%clk 00:02:39]} 11. Nh3 {[%emt 00:00:04]
[%clk 00:02:36]} O-O {[%emt 00:00:09] [%clk 00:02:32]} 12. Nf4 {[%emt 00:00:14]
[%clk 00:02:24]} Kg7 {[%emt 00:00:05] [%clk 00:02:29]} 13. O-O-O {[%emt
00:00:03] [%clk 00:02:23]} c6 {[%emt 00:00:07] [%clk 00:02:25]} 14. Kb1 {[%emt
00:00:12] [%clk 00:02:13]} Bd7 {[%emt 00:00:05] [%clk 00:02:21]} 15. Qg3 {[%emt
00:00:05] [%clk 00:02:10]} Qe7 {[%emt 00:00:26] [%clk 00:01:57]} 16. Qg5 {[%emt
00:00:11] [%clk 00:02:00]} Rae8 {[%emt 00:00:27] [%clk 00:01:33]} 17. Rhe1
{[%emt 00:00:19] [%clk 00:01:43]} Kh7 {[%emt 00:00:17] [%clk 00:01:18]} 18. f3
{[%emt 00:00:04] [%clk 00:01:41]} b5 {[%emt 00:00:19] [%clk 00:01:01]} 19. e4
{[%emt 00:00:22] [%clk 00:01:21]} fxe4 {[%emt 00:00:01] [%clk 00:01:02]} 20.
fxe4 {[%emt 00:00:03] [%clk 00:01:20]} Ng4 {[%emt 00:00:03] [%clk 00:01:01]} 21.
e5 {[%emt 00:00:06] [%clk 00:01:16]} Qxg5 {[%emt 00:00:03] [%clk 00:01:00]} 22.
hxg5 {[%emt 00:00:02] [%clk 00:01:16]} Bf5+ {[%emt 00:00:04] [%clk 00:00:58]}
23. Bc2 {[%emt 00:00:07] [%clk 00:01:11]} Bxc2+ {[%emt 00:00:02] [%clk
00:00:59]} 24. Kxc2 {[%clk 00:01:12]} Be7 {[%emt 00:00:01] [%clk 00:01:00]} 25.
Ne4 {[%emt 00:00:01] [%clk 00:01:12]} Rd8 {[%emt 00:00:11] [%clk 00:00:51]} 26.
Nf6+ {[%emt 00:00:17] [%clk 00:00:57]} Bxf6 {[%emt 00:00:09] [%clk 00:00:44]}
27. gxf6 {[%emt 00:00:01] [%clk 00:00:58]} Rd7 {[%emt 00:00:02] [%clk 00:00:45]}
28. Kc3 {[%emt 00:00:05] [%clk 00:00:54]} a5 {[%emt 00:00:06] [%clk 00:00:41]}
29. Nd3 {[%emt 00:00:06] [%clk 00:00:50]} Rfd8 {[%emt 00:00:11] [%clk 00:00:32]}
30. Re4 {[%emt 00:00:05] [%clk 00:00:46]} Rd5 {[%emt 00:00:14] [%clk 00:00:20]}
31. Rde1 {[%emt 00:00:23] [%clk 00:00:25]} Kh6 {[%emt 00:00:05] [%clk 00:00:18]}
32. a3 {[%emt 00:00:01] [%clk 00:00:26]} Kg5 {[%emt 00:00:02] [%clk 00:00:18]}
33. R1e2 {[%emt 00:00:05] [%clk 00:00:23]} Nh6 {[%emt 00:00:07] [%clk 00:00:14]}
34. Nf4 {[%emt 00:00:05] [%clk 00:00:18]} R5d7 {[%emt 00:00:02] [%clk 00:00:15]}
35. e6 {[%emt 00:00:11] [%clk 00:00:10]} fxe6 {[%emt 00:00:07] [%clk 00:00:09]}
36. Nxe6+ {[%emt 00:00:02] [%clk 00:00:09]} Kxf6 {[%clk 00:00:11]} 37. Nxd8
{[%emt 00:00:02] [%clk 00:00:09]} Rxd8 {[%emt 00:00:01] [%clk 00:00:12]} 38.
Re6+ {[%clk 00:00:10]} Kf7 {[%emt 00:00:01] [%clk 00:00:13]} 39. Rxc6 {[%emt
00:00:01] [%clk 00:00:11]} Nf5 {[%emt 00:00:01] [%clk 00:00:14]} 40. Re4 {[%emt
00:00:04] [%clk 00:00:09]} h4 {[%emt 00:00:05] [%clk 00:00:11]} 41. Rb6 {[%emt
00:00:02] [%clk 00:00:09]} Rc8+ {[%emt 00:00:04] [%clk 00:00:09]} 42. Kd3 {[%clk
00:00:10]} Rc1 {[%emt 00:00:02] [%clk 00:00:09]} 43. Rxb5 {[%emt 00:00:03] [%clk
00:00:09]} Rg1 {[%emt 00:00:01] [%clk 00:00:10]} 44. Rb7+ {[%emt 00:00:02] [%clk
00:00:09]} Kf6 {[%emt 00:00:01] [%clk 00:00:11]} 45. Rg4 {[%emt 00:00:01] [%clk
00:00:09]} Ng3 {[%emt 00:00:03] [%clk 00:00:10]} 46. Rxh4 {[%emt 00:00:04] [%clk
00:00:08]} Rxg2 {[%clk 00:00:11]} 47. Rb5 {[%emt 00:00:04] [%clk 00:00:06]} Nf5
{[%emt 00:00:01] [%clk 00:00:12]} 48. Rh8 {[%clk 00:00:07]} Rg3+ {[%emt
00:00:02] [%clk 00:00:12]} 49. Kd2 {[%emt 00:00:01] [%clk 00:00:08]} Nxd4 {[%emt
00:00:01] [%clk 00:00:13]} 50. Rb6+ {[%emt 00:00:01] [%clk 00:00:09]} Ke5 {[%emt
00:00:02] [%clk 00:00:12]} 51. Re8+ {[%emt 00:00:02] [%clk 00:00:10]} Kf4 {[%clk
00:00:14]} 52. Rf6+ {[%emt 00:00:03] [%clk 00:00:08]} Nf5 {[%emt 00:00:01] [%clk
00:00:14]} 53. b4 {[%emt 00:00:03] [%clk 00:00:08]} Rxa3 {[%emt 00:00:02] [%clk
00:00:15]} 54. b5 {[%clk 00:00:09]} Rb3 {[%emt 00:00:01] [%clk 00:00:15]} 55. b6
{[%clk 00:00:11]} a4 {[%emt 00:00:03] [%clk 00:00:15]} 56. Rxg6 {[%emt 00:00:04]
[%clk 00:00:08]} a3 {[%clk 00:00:16]} 57. Ra8 {[%emt 00:00:01] [%clk 00:00:09]}
Nd4 {[%emt 00:00:01] [%clk 00:00:17]} 58. Ra4 {[%clk 00:00:10]} Ke5 {[%emt
00:00:01] [%clk 00:00:18]} 59. Rg5+ {[%emt 00:00:02] [%clk 00:00:11]} Kf6 {[%clk
00:00:19]} 60. Rh5 {[%emt 00:00:04] [%clk 00:00:09]} Ne6 {[%emt 00:00:03] [%clk
00:00:18]} 61. Ra6 {[%emt 00:00:05] [%clk 00:00:07]} Ke7 {[%emt 00:00:02] [%clk
00:00:17]} 62. Rh7+ {[%emt 00:00:02] [%clk 00:00:06]} Kd6 {[%emt 00:00:02] [%clk
00:00:17]} 63. b7+ {[%emt 00:00:01] [%clk 00:00:07]} Kd5 {[%clk 00:00:18]} 64.
Rh5+ {[%clk 00:00:08]} 1-0

[Site "Europe Echecs"]